fUST/lending_fUST_20250816
["ID","MTS","AMOUNT","RATE_DAILY","PERIOD"]
[379466428,1755293444829,-156.560358,0.00027588,30]
[379466429,1755293444839,-500.0,0.00027588,10]
[379466430,1755293444848,-151.0,0.00027588,7]
[379466431,1755293444857,-151.0,0.00027588,7]
[379466432,1755293444866,-151.0,0.00027588,7]
[379466433,1755293444875,-500.0,0.00027588,10]
[379466434,1755293444884,-843.47195277,0.0002759,30]
[379466435,1755293444893,-417.15472785,0.0002759,30]
[379466436,1755293444905,-388.87282,0.00027595,7]
[379466437,1755293444914,-388.87282,0.00027595,7]
[379466438,1755293444923,-388.87282,0.00027595,7]
[379466439,1755293444933,-388.87282,0.00027595,7]
[379466440,1755293444942,-388.87282,0.00027595,7]
[379466441,1755293444951,-388.87282,0.00027595,7]
[379466442,1755293444960,-388.87282,0.00027595,7]
[379466443,1755293444969,-388.87282,0.00027595,7]
[379466444,1755293444978,-388.87282,0.00027595,7]
[379466445,1755293444987,-388.87282,0.00027595,7]
[379466446,1755293444996,-388.87282,0.00027595,7]
[379466447,1755293445005,-388.87282,0.00027595,7]
[379466448,1755293445015,-388.87282,0.00027595,7]
[379466449,1755293445024,-388.87282,0.00027595,7]
[379466450,1755293445033,-388.87282,0.00027595,7]
[379466451,1755293445042,-388.87282,0.00027595,7]
[379466452,1755293445051,-388.87282,0.00027595,7]
[379466453,1755293445059,-388.87282,0.00027595,7]
[379466454,1755293445070,-388.87282,0.00027595,7]
[379466455,1755293445079,-388.87282,0.00027595,7]
[379466456,1755293445088,-151.0,0.00027595,7]
[379466457,1755293445097,-151.0,0.00027595,7]
[379466458,1755293445106,-151.0,0.00027595,7]
[379466459,1755293445115,-151.0,0.00027595,7]
[379466460,1755293445124,-162.945879,0.00027595,7]
[379466461,1755293445133,-300.67924464,0.00027599,10]
[379466462,1755293445142,-3000.0,0.000276,2]
[379466464,1755293445151,-3000.0,0.000276,2]
[379466465,1755293445160,-3000.0,0.000276,2]
[379466467,1755293445170,-250.0,0.000276,7]
[379466469,1755293445179,-250.0,0.000276,7]
[379466471,1755293445190,-165.866428,0.000276,20]
[379466473,1755293445205,-165.866427,0.000276,20]
[379466475,1755293445214,-165.866427,0.000276,20]
[379466477,1755293445224,-156.560358,0.000276,20]
[379466479,1755293445233,-843.47195277,0.000276,10]
[379466481,1755293445243,-843.47195277,0.000276,3]
[379466483,1755293445252,-160.0,0.000276,3]
[379466485,1755293445262,-417.15472785,0.000276,10]
[379466487,1755293445271,-417.15472785,0.000276,3]
[379466489,1755293445281,-417.15472785,0.000276,7]
[379466491,1755293445290,-160.0,0.000276,10]
[379466493,1755293445300,-160.0,0.000276,30]
[379466495,1755293445310,-160.0,0.000276,3]
[379466497,1755293445321,-160.0,0.000276,7]
[379466499,1755293445330,-190.878435,0.000276,2]
[379466501,1755293445340,-176.27,0.000276,7]
[379466503,1755293445349,-232.08354597,0.000276,7]
[379466505,1755293445359,-216.77912109,0.000276,7]
[379466507,1755293445368,-645.0,0.000276,2]
[379466509,1755293445377,-5172.9613561,0.00027601,2]
[379466511,1755293445386,-1411605.40104491,0.00027601,20]
[379466586,1755293446111,-366.0670543,0.00024465,2]
[379466589,1755293446125,-133.9329457,0.00024465,2]
[379466591,1755293446135,-500.0,0.00024465,2]
[379466593,1755293446144,-500.0,0.00024465,2]
[379466595,1755293446155,-500.0,0.00024465,2]
[379466597,1755293446164,-66899.07752499,0.00027601,20]
[379466599,1755293446176,-116855.0084172,0.00027601,20]
[379466626,1755293446435,-5000.0,0.0001782,2]
[379466628,1755293446445,-4207.499999,0.00027601,20]
[379466633,1755293446483,-10364.22355748,0.00027601,20]
[379466662,1755293446749,-2200.0,0.00027574,2]
[379466673,1755293446837,-51355.7838442,0.00027601,20]
[379467115,1755293838208,160.124625,0.00013699,2]
[379467153,1755294428236,-266.69154409,0.0001711,2]
[379467154,1755294431608,4733.30845591,0.0001683,2]
[379467155,1755294432083,-1472.7854861,0.00017183,2]
[379467156,1755294432113,-436.00833167,0.00017183,2]
[379467157,1755294445102,-168.6489485,0.0001694,2]
[379467158,1755294445125,-854.05596687,0.00017183,2]
[379467159,1755294445144,-353.93190914,0.00017283,2]
[379467160,1755294445164,-176.96595457,0.00017431,2]
[379467161,1755294445189,-151.79739073,0.00017769,2]
[379467162,1755294445212,-1200.0,0.00017813,2]
[379467163,1755294445232,-1200.0,0.00017813,2]
[379467164,1755294445252,-300.0,0.00017814,2]
[379467165,1755294445275,-300.0,0.00017814,2]
[379467166,1755294445297,-300.0,0.00017814,2]
[379467167,1755294445320,-300.0,0.00017814,2]
[379467168,1755294445342,-300.0,0.00017814,2]
[379467169,1755294445362,-9410.0,0.00017816,2]
[379467170,1755294445384,-17542.78811913,0.00017818,2]
[379467171,1755294445404,-544.486539,0.00017869,2]
[379467172,1755294445425,-160.0,0.000179,2]
[379467173,1755294445447,-500.0,0.00017968,2]
[379467174,1755294445466,-398.38,0.00017968,2]
[379467175,1755294445485,-495.27221174,0.00017968,2]
[379467176,1755294445504,-157.25250987,0.00017968,2]
[379467177,1755294445525,-500.0,0.00017968,2]
[379467178,1755294445545,-500.0,0.00017968,2]
[379467179,1755294445565,-500.0,0.00017968,2]
[379467180,1755294445584,-500.0,0.00017968,2]
[379467181,1755294445604,-500.0,0.00017968,2]
[379467182,1755294445624,-500.0,0.00017968,2]
[379467183,1755294445644,-500.0,0.00017968,2]
[379467184,1755294445664,-500.0,0.00017968,2]
[379467185,1755294445684,-633.17751202,0.00017968,2]
[379467186,1755294445705,-184.0,0.00017968,2]
[379467187,1755294445728,-500.0,0.00017968,2]
[379467188,1755294445748,-500.0,0.00017968,2]
[379467189,1755294445770,-631.92648836,0.00017968,2]
[379467190,1755294445790,-500.0,0.00017968,2]
[379467191,1755294445812,-500.0,0.00017968,2]
[379467192,1755294445833,-500.0,0.00017968,2]
[379467193,1755294445853,-500.0,0.00017968,2]
[379467194,1755294445874,-500.0,0.00017968,2]
[379467195,1755294445894,-500.0,0.00017968,2]
[379467196,1755294445914,-500.0,0.00017968,2]
[379467197,1755294445936,-500.0,0.00017968,2]
[379467198,1755294445956,-500.0,0.00017968,2]
[379467199,1755294445979,-430.25513435,0.00017968,2]
[379467200,1755294446001,-450.52766219,0.00017968,2]
[379467201,1755294446021,-379.75791587,0.00017968,2]
[379467202,1755294446041,-3348.46578615,0.0001797,2]
[379467203,1755294447672,5000.0,0.0001683,2]
[379467218,1755294632132,-545.57358418,0.0001779,2]
[379467219,1755294632143,-4454.42641582,0.0001779,2]
[379467220,1755294632153,-758.0,0.00017968,2]
[379467221,1755294632165,-272.0,0.00017969,2]
[379467222,1755294632176,-300.0,0.00017969,2]
[379467223,1755294632186,-300.0,0.00017969,2]
[379467224,1755294632195,-300.0,0.00017969,2]
[379467225,1755294632206,-300.0,0.00017969,2]
[379467226,1755294632215,-300.0,0.00017969,2]
[379467227,1755294632225,-6136.85464965,0.0001797,2]
[379467228,1755294632234,-160.0,0.00017993,2]
[379467229,1755294632244,-19383.8916563,0.00018108,2]
[379467230,1755294632254,-200.0,0.00018168,2]
[379467231,1755294632263,-200.0,0.00018168,2]
[379467232,1755294632272,-200.0,0.00018168,2]
[379467233,1755294632281,-200.0,0.00018168,2]
[379467234,1755294632290,-200.0,0.00018168,2]
[379467235,1755294632299,-200.0,0.00018168,2]
[379467236,1755294632308,-1720.99817121,0.000189,2]
[379467237,1755294632317,-666.0,0.00019178,2]
[379467238,1755294632327,-869.75884002,0.00019376,2]
[379467239,1755294632335,-1616.0,0.0001944,2]
[379467240,1755294632345,-167.0,0.00019607,2]
[379467241,1755294632354,-420.0,0.00019607,2]
[379467242,1755294632363,-195.35379498,0.000198,2]
[379467243,1755294632373,-576.89690831,0.000198,2]
[379467244,1755294632382,-190.2788297,0.00019863,2]
[379467245,1755294632391,-1646.0622658,0.00019892,2]
[379467246,1755294632401,-3222.48740327,0.000199,2]
[379467247,1755294632410,-200.0,0.00019955,20]
[379467248,1755294632419,-200.0,0.00019955,20]
[379467249,1755294632429,-200.0,0.00019955,20]
[379467250,1755294632438,-200.0,0.00019955,20]
[379467251,1755294632447,-200.0,0.00019955,20]
[379467252,1755294632457,-200.0,0.00019955,20]
[379467253,1755294632466,-200.0,0.00019955,20]
[379467254,1755294632475,-280.0,0.00019955,20]
[379467255,1755294632485,-403.5473876,0.00020415,2]
[379467256,1755294632494,-270.02834826,0.00020415,2]
[379467257,1755294632503,-383.39196247,0.00020415,2]
[379467259,1755294632517,-861.08553275,0.00020416,2]
[379467262,1755294632557,-2361.40187041,0.00020416,2]
[379467263,1755294632566,-576.89690831,0.00020897,2]
[379467264,1755294632575,-3222.48740316,0.00020932,2]
[379467265,1755294632585,-587.0,0.00021394,2]
[379467266,1755294632595,-3152.3265603,0.00021448,2]
[379467380,1755294638373,-70.16084286,0.00021448,2]
[379467381,1755294638384,-262.41,0.00021669,2]
[379467382,1755294638394,-505.31879326,0.00021917,20]
[379467383,1755294638403,-200.0,0.00021917,20]
[379467384,1755294638413,-200.0,0.00021917,20]
[379467385,1755294638422,-200.0,0.00021917,20]
[379467386,1755294638432,-200.0,0.00021917,20]
[379467387,1755294638442,-200.0,0.00021917,20]
[379467388,1755294638453,-200.0,0.00021917,20]
[379467389,1755294638462,-200.0,0.00021917,20]
[379467390,1755294638472,-200.0,0.00021917,20]
[379467391,1755294638481,-200.0,0.00021917,20]
[379467392,1755294638491,-200.0,0.00021917,20]
[379467393,1755294638500,-350.0,0.00021917,20]
[379467394,1755294638510,-2408.96481371,0.00021965,2]
[379467395,1755294638521,-813.52258945,0.00021965,2]
[379467396,1755294638530,-576.89690831,0.00021995,2]
[379467397,1755294638539,-160.0,0.00022209,2]
[379467398,1755294638548,-216.77912109,0.00022254,2]
[379467399,1755294638558,-160.0,0.00022254,2]
[379467400,1755294638567,-232.08354597,0.00022254,2]
[379467401,1755294638577,-843.47195277,0.00022254,2]
[379467402,1755294638587,-3222.48740316,0.00022481,2]
[379467403,1755294638596,-205.483,0.00022617,2]
[379467404,1755294638605,-3222.48740316,0.00022997,2]
[379467405,1755294638614,-160.0,0.00023,2]
[379467406,1755294638624,-576.89690831,0.00023092,2]
[379467407,1755294638632,-823.0,0.00023344,2]
[379467408,1755294638642,-3222.48740316,0.00023513,2]
[379467409,1755294638651,-176.27,0.000236,7]
[379467410,1755294638660,-524.83,0.00023638,2]
[379467411,1755294638669,-1000.0,0.00023799,2]
[379467412,1755294638679,-397.70302287,0.00023799,2]
[379467413,1755294638688,-1720.99817121,0.000239,2]
[379467414,1755294638697,-1019.65444067,0.00023972,2]
[379467415,1755294638706,-3222.48740316,0.00024029,2]
[379467416,1755294638716,-200.0,0.00024072,20]
[379467417,1755294638725,-200.0,0.00024072,20]
[379467418,1755294638735,-200.0,0.00024072,20]
[379467419,1755294638744,-200.0,0.00024072,20]
[379467420,1755294638754,-200.0,0.00024072,20]
[379467421,1755294638763,-200.0,0.00024072,20]
[379467422,1755294638773,-200.0,0.00024072,20]
[379467423,1755294638783,-200.0,0.00024072,20]
[379467424,1755294638792,-200.0,0.00024072,20]
[379467425,1755294638801,-200.0,0.00024072,20]
[379467426,1755294638811,-200.0,0.00024072,20]
[379467427,1755294638820,-200.0,0.00024072,20]
[379467428,1755294638829,-200.0,0.00024072,20]
[379467429,1755294638839,-200.0,0.00024072,20]
[379467430,1755294638849,-200.0,0.00024072,20]
[379467431,1755294638859,-292.0,0.00024072,20]
[379467432,1755294638867,-232.65346375,0.0002419,2]
[379467433,1755294638880,-344.24344456,0.0002419,2]
[379467434,1755294638889,-800.0,0.00024328,2]
[379467435,1755294638899,-1019.65444067,0.00024505,2]
[379467436,1755294638908,-3222.48740316,0.00024545,2]
[379467437,1755294638917,-295.2710907,0.00024658,2]
[379467438,1755294638927,-2986.98378393,0.000248,2]
[379467439,1755294638936,-5750.12469403,0.000248,2]
[379467440,1755294638945,-2158.7020361,0.00024863,2]
[379467441,1755294638954,-500.0,0.00024873,2]
[379467442,1755294638963,-500.0,0.00024873,2]
[379467443,1755294638973,-500.0,0.00024873,2]
[379467444,1755294638982,-500.0,0.00024873,2]
[379467445,1755294638991,-500.0,0.00024873,2]
[379467446,1755294639000,-474.71591612,0.00024889,2]
[379467447,1755294639009,-508.29082252,0.00024889,2]
[379467448,1755294639018,-508.29082252,0.00024889,2]
[379467449,1755294639027,-508.29082252,0.00024889,2]
[379467450,1755294639037,-508.29082252,0.00024889,2]
[379467451,1755294639046,-508.29082252,0.00024889,2]
[379467452,1755294639056,-508.29082252,0.00024889,2]
[379467453,1755294639065,-508.29082252,0.00024889,2]
[379467454,1755294639074,-508.29082252,0.00024889,2]
[379467455,1755294639083,-508.29082252,0.00024889,2]
[379467456,1755294639093,-508.29082252,0.00024889,2]
[379467457,1755294639102,-508.29082252,0.00024889,2]
[379467458,1755294639112,-508.29082252,0.00024889,2]
[379467459,1755294639122,-508.29082252,0.00024889,2]
[379467460,1755294639246,-508.29082252,0.00024889,2]
[379467461,1755294639256,-508.29082252,0.00024889,2]
[379467462,1755294639266,-508.29082252,0.00024889,2]
[379467463,1755294639276,-508.29082252,0.00024889,2]
[379467464,1755294639286,-508.29082252,0.00024889,2]
[379467465,1755294639296,-508.29082252,0.00024889,2]
[379467466,1755294639306,-508.29082252,0.00024889,2]
[379467467,1755294639316,-184.13,0.0002489,3]
[379467468,1755294639326,-12952.2122166,0.0002489,2]
[379467469,1755294639337,-552.39,0.0002489,3]
[379467470,1755294639348,-216.77912109,0.000249,7]
[379467471,1755294639357,-843.47195277,0.000249,7]
[379467472,1755294639367,-16331.51,0.000249,2]
[379467473,1755294639378,-160.0,0.000249,7]
[379467474,1755294639387,-14678.83808461,0.000249,2]
[379467475,1755294639681,-223480.96245539,0.000249,2]
[379467476,1755294639691,-3246.93,0.000249,7]
[379467477,1755294639700,-232.08354597,0.000249,7]
[379467478,1755294639710,-12273.87,0.000249,7]
[379467479,1755294639721,-1019.65444067,0.00025038,2]
[379467480,1755294639731,-3222.48740316,0.00025061,2]
[379467481,1755294639740,-576.89690831,0.00025287,2]
[379467482,1755294639750,-800.0,0.00025424,2]
[379467483,1755294639760,-408.0,0.00025443,2]
[379467484,1755294639769,-2152.0,0.00025443,2]
[379467485,1755294639779,-636.0,0.00025443,2]
[379467486,1755294639788,-1152.0,0.00025472,2]
[379467487,1755294639798,-500.0,0.000255,2]
[379467488,1755294639808,-500.0,0.000255,2]
[379467489,1755294639818,-1019.65444067,0.00025571,2]
[379467490,1755294639828,-3222.48740316,0.00025577,3]
[379467491,1755294639838,-787.24,0.00025608,2]
[379467492,1755294639847,-153.0,0.00025796,2]
[379467493,1755294639857,-153.0,0.00025796,2]
[379467494,1755294639866,-153.0,0.00025796,2]
[379467495,1755294639876,-153.0,0.00025796,2]
[379467496,1755294639885,-153.0,0.00025796,2]
[379467497,1755294639895,-153.0,0.00025796,2]
[379467498,1755294639905,-153.0,0.00025796,2]
[379467499,1755294639913,-153.0,0.00025796,2]
[379467500,1755294639923,-153.0,0.00025796,2]
[379467501,1755294639932,-153.0,0.00025796,2]
[379467502,1755294639941,-153.0,0.00025796,2]
[379467503,1755294639951,-153.0,0.00025796,2]
[379467504,1755294639961,-153.0,0.00025796,2]
[379467505,1755294639971,-153.0,0.00025796,2]
[379467506,1755294639980,-153.0,0.00025796,2]
[379467507,1755294639989,-153.0,0.00025796,2]
[379467508,1755294639999,-153.0,0.00025796,2]
[379467509,1755294640009,-153.0,0.00025796,2]
[379467510,1755294640019,-153.0,0.00025796,2]
[379467511,1755294640029,-153.0,0.00025796,2]
[379467512,1755294640040,-153.0,0.00025796,2]
[379467513,1755294640050,-153.0,0.00025796,2]
[379467514,1755294640059,-153.0,0.00025796,2]
[379467515,1755294640069,-153.0,0.00025796,2]
[379467516,1755294640078,-153.0,0.00025796,2]
[379467517,1755294640087,-153.0,0.00025796,2]
[379467518,1755294640097,-153.0,0.00025796,2]
[379467519,1755294640107,-153.0,0.00025796,2]
[379467520,1755294640117,-153.0,0.00025796,2]
[379467521,1755294640126,-153.0,0.00025796,2]
[379467522,1755294640136,-153.0,0.00025796,2]
[379467523,1755294640145,-153.0,0.00025796,2]
[379467524,1755294640155,-153.0,0.00025796,2]
[379467525,1755294640165,-153.0,0.00025796,2]
[379467526,1755294640175,-153.0,0.00025796,2]
[379467527,1755294640185,-153.0,0.00025796,2]
[379467528,1755294640194,-153.0,0.00025796,2]
[379467529,1755294640203,-153.0,0.00025796,2]
[379467530,1755294640214,-153.0,0.00025796,2]
[379467531,1755294640223,-153.0,0.00025796,2]
[379467532,1755294640233,-153.0,0.00025796,2]
[379467533,1755294640242,-153.0,0.00025796,2]
[379467534,1755294640252,-153.0,0.00025796,2]
[379467535,1755294640262,-153.0,0.00025796,2]
[379467536,1755294640271,-153.0,0.00025796,2]
[379467537,1755294640281,-153.0,0.00025796,2]
[379467538,1755294640291,-153.0,0.00025796,2]
[379467539,1755294640300,-153.0,0.00025796,2]
[379467540,1755294640310,-153.0,0.00025796,2]
[379467541,1755294640319,-153.0,0.00025796,2]
[379467542,1755294640328,-153.0,0.00025796,2]
[379467543,1755294640337,-153.0,0.00025796,2]
[379467544,1755294640347,-153.0,0.00025796,2]
[379467545,1755294640358,-153.0,0.00025796,2]
[379467546,1755294640368,-153.0,0.00025796,2]
[379467547,1755294640377,-153.0,0.00025796,2]
[379467548,1755294640387,-153.0,0.00025796,2]
[379467549,1755294640396,-153.0,0.00025796,2]
[379467550,1755294640405,-153.0,0.00025796,2]
[379467551,1755294640414,-153.0,0.00025796,2]
[379467552,1755294640424,-153.0,0.00025796,2]
[379467553,1755294640433,-153.0,0.00025796,2]
[379467554,1755294640443,-153.0,0.00025796,2]
[379467555,1755294640454,-153.0,0.00025796,2]
[379467556,1755294640464,-153.0,0.00025796,2]
[379467557,1755294640473,-153.0,0.00025796,2]
[379467558,1755294640483,-153.0,0.00025796,2]
[379467559,1755294640492,-153.0,0.00025796,2]
[379467560,1755294640502,-153.0,0.00025796,2]
[379467561,1755294640511,-153.0,0.00025796,2]
[379467562,1755294640520,-153.0,0.00025796,2]
[379467563,1755294640530,-153.0,0.00025796,2]
[379467564,1755294640539,-153.0,0.00025796,2]
[379467565,1755294640549,-153.0,0.00025796,2]
[379467566,1755294640559,-153.0,0.00025796,2]
[379467567,1755294640568,-153.0,0.00025796,2]
[379467568,1755294640578,-153.0,0.00025796,2]
[379467569,1755294640588,-153.0,0.00025796,2]
[379467570,1755294640598,-153.0,0.00025796,2]
[379467571,1755294640608,-153.0,0.00025796,2]
[379467572,1755294640618,-153.0,0.00025796,2]
[379467573,1755294640627,-153.0,0.00025796,2]
[379467574,1755294640637,-153.0,0.00025796,2]
[379467575,1755294640646,-153.0,0.00025796,2]
[379467576,1755294640656,-153.0,0.00025796,2]
[379467577,1755294640665,-153.0,0.00025796,2]
[379467578,1755294640675,-153.0,0.00025796,2]
[379467579,1755294640684,-153.0,0.00025796,2]
[379467580,1755294640694,-153.0,0.00025796,2]
[379467581,1755294640704,-153.0,0.00025796,2]
[379467582,1755294640714,-153.0,0.00025796,2]
[379467583,1755294640723,-153.0,0.00025796,2]
[379467584,1755294640731,-153.0,0.00025796,2]
[379467585,1755294640741,-153.0,0.00025796,2]
[379467586,1755294640750,-153.0,0.00025796,2]
[379467587,1755294640879,-153.0,0.00025796,2]
[379467588,1755294640890,-153.0,0.00025796,2]
[379467589,1755294640900,-153.0,0.00025796,2]
[379467590,1755294640910,-153.0,0.00025796,2]
[379467591,1755294640919,-153.0,0.00025796,2]
[379467592,1755294640928,-153.0,0.00025796,2]
[379467593,1755294640938,-592.10698436,0.00026073,2]
[379467594,1755294640948,-500.0,0.00026073,2]
[379467595,1755294640957,-150.0,0.00026073,2]
[379467596,1755294640967,-500.0,0.00026073,2]
[379467597,1755294640977,-3222.48740316,0.00026094,4]
[379467598,1755294640986,-1019.65444067,0.00026104,2]
[379467599,1755294640996,-160.0,0.00026111,2]
[379467600,1755294641006,-10793.5101805,0.00026121,2]
[379467601,1755294641015,-238159.80054,0.00026131,2]
[379467602,1755294641025,-5750.12469403,0.00026141,2]
[379467603,1755294641034,-500.0,0.00026173,2]
[379467604,1755294641044,-500.0,0.00026173,2]
[379467605,1755294641054,-500.0,0.00026173,2]
[379467606,1755294641063,-2158.7020361,0.00026205,2]
[379467607,1755294641072,-500.0,0.00026214,2]
[379467608,1755294641082,-151.0,0.00026214,2]
[379467609,1755294641092,-151.0,0.00026214,2]
[379467610,1755294641102,-500.0,0.00026214,2]
[379467611,1755294641112,-151.0,0.00026214,2]
[379467612,1755294641122,-500.0,0.00026214,2]
[379467613,1755294641131,-151.0,0.00026214,2]
[379467614,1755294641140,-500.0,0.00026214,2]
[379467615,1755294641150,-151.0,0.00026214,2]
[379467616,1755294641159,-500.0,0.00026214,2]
[379467617,1755294641179,-500.0,0.00026214,2]
[379467618,1755294641188,-151.0,0.00026214,2]
[379467619,1755294641198,-500.0,0.00026214,2]
[379467620,1755294641208,-151.0,0.00026214,2]
[379467621,1755294641219,-220.41087772,0.00026214,2]
[379467622,1755294641228,-151.0,0.00026214,2]
[379467623,1755294641238,-17842.522448,0.00026214,2]
[379467624,1755294641251,-151.0,0.00026214,2]
[379467625,1755294641261,-2183.31810187,0.00026214,2]
[379467626,1755294641272,-151.0,0.00026214,2]
[379467627,1755294641283,-151.0,0.00026214,2]
[379467628,1755294641294,-151.0,0.00026214,2]
[379467629,1755294641313,-151.0,0.00026214,2]
[379467630,1755294641328,-151.0,0.00026214,2]
[379467631,1755294641337,-151.0,0.00026214,2]
[379467632,1755294641347,-151.0,0.00026214,2]
[379467633,1755294641356,-151.0,0.00026214,2]
[379467634,1755294641366,-151.0,0.00026214,2]
[379467635,1755294641375,-368.26,0.0002626,3]
[379467636,1755294641385,-2264.10087164,0.00026269,2]
[379467637,1755294641394,-500.0,0.00026273,2]
[379467638,1755294641404,-939.75943742,0.00026324,2]
[379467639,1755294641414,-2200.0,0.0002636,2]
[379467640,1755294641424,-576.89690831,0.00026385,2]
[379467641,1755294641433,-200.0,0.00026439,20]
[379467642,1755294641443,-200.0,0.00026439,20]
[379467643,1755294641452,-200.0,0.00026439,20]
[379467644,1755294641462,-200.0,0.00026439,20]
[379467645,1755294641471,-200.0,0.00026439,20]
[379467646,1755294641481,-200.0,0.00026439,20]
[379467647,1755294641491,-200.0,0.00026439,20]
[379467648,1755294641501,-200.0,0.00026439,20]
[379467649,1755294641511,-200.0,0.00026439,20]
[379467650,1755294641521,-200.0,0.00026439,20]
[379467651,1755294641532,-200.0,0.00026439,20]
[379467652,1755294641542,-200.0,0.00026439,20]
[379467653,1755294641552,-200.0,0.00026439,20]
[379467654,1755294641562,-200.0,0.00026439,20]
[379467655,1755294641572,-200.0,0.00026439,20]
[379467656,1755294641582,-200.0,0.00026439,20]
[379467657,1755294641591,-200.0,0.00026439,20]
[379467658,1755294641601,-200.0,0.00026439,20]
[379467659,1755294641610,-200.0,0.00026439,20]
[379467660,1755294641619,-200.0,0.00026439,20]
[379467661,1755294641629,-200.0,0.00026439,20]
[379467662,1755294641638,-200.0,0.00026439,20]
[379467663,1755294641648,-208.0,0.00026439,20]
[379467664,1755294641658,-12273.87,0.000265,7]
[379467665,1755294641667,-151.0,0.00026576,2]
[379467666,1755294641678,-151.0,0.00026576,2]
[379467667,1755294641687,-151.0,0.00026576,2]
[379467668,1755294641696,-151.0,0.00026576,2]
[379467669,1755294641706,-151.0,0.00026576,2]
[379467670,1755294641715,-151.0,0.00026576,2]
[379467671,1755294641725,-151.0,0.00026576,2]
[379467672,1755294641735,-151.0,0.00026576,2]
[379467673,1755294641744,-151.0,0.00026576,2]
[379467674,1755294641754,-201.22167384,0.00026576,2]
[379467675,1755294641764,-151.0,0.00026576,2]
[379467676,1755294641773,-151.94102238,0.00026576,2]
[379467677,1755294641783,-151.24638763,0.00026576,2]
[379467678,1755294641793,-152.11740545,0.00026576,2]
[379467679,1755294641802,-156.77208899,0.00026576,2]
[379467680,1755294641812,-151.85152653,0.00026576,2]
[379467681,1755294641822,-500.0,0.00026576,2]
[379467682,1755294641831,-151.0,0.00026576,2]
[379467683,1755294641842,-151.0,0.00026576,2]
[379467684,1755294641851,-151.0,0.00026576,2]
[379467685,1755294641860,-151.0,0.00026576,2]
[379467686,1755294641870,-151.0,0.00026576,2]
[379467687,1755294641879,-151.0,0.00026576,2]
[379467688,1755294641888,-10793.5101805,0.0002658,2]
[379467689,1755294641899,-238159.80054,0.0002659,2]
[379467690,1755294641908,-3246.93,0.000266,7]
[379467691,1755294641918,-3222.48740316,0.0002661,5]
[379467692,1755294641927,-2158.7020361,0.00026611,2]
[379467693,1755294641937,-1000.0,0.00026621,2]
[379467694,1755294641947,-250.0,0.00026621,2]
[379467695,1755294641957,-151.0,0.00026637,7]
[379467696,1755294641966,-260.0,0.00026659,2]
[379467697,1755294641975,-16331.51,0.000267,2]
[379467698,1755294641986,-1000.0,0.00026721,2]
[379467699,1755294641997,-1000.0,0.00026721,2]
[379467700,1755294642007,-1000.0,0.00026721,2]
[379467701,1755294642016,-456.97595022,0.00026772,2]
[379467702,1755294642026,-500.88170187,0.00026821,2]
[379467703,1755294642036,-500.0,0.0002685,2]
[379467704,1755294642045,-151.0,0.0002685,2]
[379467705,1755294642054,-151.0,0.0002685,2]
[379467706,1755294642064,-500.0,0.00027124,2]
[379467707,1755294642074,-235.55944359,0.00027124,2]
[379467708,1755294642083,-151.0,0.00027124,2]
[379467709,1755294642092,-3222.48740316,0.00027126,7]